[Event "*** Qualifier 1: Titled Tuesday 3|2 Blitz"]
[Site "Chess.com"]
[Date "2017.04.04"]
[Round "2"]
[White "fastestmindalive"]
[Black "pedroholly22"]
[Result "1-0"]
[WhiteElo "2431"]
[BlackElo "2282"]
[TimeControl "180+2"]
[EndTime "13:21:36 PDT"]
[Termination "fastestmindalive won by resignation"]

1. e4 {[%clk 0:03:01.9]} 1... c5 {[%clk 0:02:58]} 2. Nc3 {[%clk 0:03:02.1]} 2...
Nc6 {[%clk 0:02:54.9]} 3. Bb5 {[%clk 0:03:02.7]} 3... Nd4 {[%clk 0:02:54.1]} 4.
Nf3 {[%clk 0:03:02.9]} 4... Nxb5 {[%clk 0:02:45.6]} 5. Nxb5 {[%clk 0:03:03.9]}
5... g6 {[%clk 0:02:45.2]} 6. d4 {[%clk 0:03:01.6]} 6... Bg7 {[%clk 0:02:39.5]}
7. dxc5 {[%clk 0:02:57.6]} 7... Qa5+ {[%clk 0:02:30.9]} 8. Nc3 {[%clk
0:02:58.7]} 8... Nf6 {[%clk 0:02:23.1]} 9. O-O {[%clk 0:02:58.3]} 9... O-O
{[%clk 0:02:22.6]} 10. Be3 {[%clk 0:02:50.2]} 10... e6 {[%clk 0:02:19.4]} 11.
Rb1 {[%clk 0:02:39.1]} 11... Ng4 {[%clk 0:02:15.6]} 12. b4 {[%clk 0:02:36.5]}
12... Qc7 {[%clk 0:02:07.3]} 13. Bd4 {[%clk 0:02:34.6]} 13... Bxd4 {[%clk
0:01:58.1]} 14. Qxd4 {[%clk 0:02:35]} 14... a5 {[%clk 0:01:58.6]} 15. b5 {[%clk
0:02:21.1]} 15... h6 {[%clk 0:01:50.7]} 16. h3 {[%clk 0:02:19.3]} 16... e5
{[%clk 0:01:46.4]} 17. Nd5 {[%clk 0:02:19.3]} 17... Qd8 {[%clk 0:01:33.3]} 18.
Qd2 {[%clk 0:02:13.9]} 18... Nf6 {[%clk 0:01:33.3]} 19. Nb6 {[%clk 0:01:56.6]}
19... Rb8 {[%clk 0:01:30.2]} 20. Qd6 {[%clk 0:01:54.8]} 20... Nxe4 {[%clk
0:01:24.9]} 21. Qxb8 {[%clk 0:01:55]} 21... Nxc5 {[%clk 0:01:26.8]} 22. Nxc8
{[%clk 0:01:51.3]} 22... e4 {[%clk 0:01:21.1]} 23. Nd4 {[%clk 0:01:50.2]} 23...
Qg5 {[%clk 0:01:18.3]} 24. Qg3 {[%clk 0:01:47.8]} 24... Rxc8 {[%clk 0:01:13.2]}
25. Qxg5 {[%clk 0:01:48.3]} 25... hxg5 {[%clk 0:01:14.6]} 26. b6 {[%clk
0:01:48.6]} 26... f5 {[%clk 0:01:13.5]} 27. Rb5 {[%clk 0:01:48.8]} 27... Na6
{[%clk 0:01:10.8]} 28. Rxa5 {[%clk 0:01:48.9]} 28... Rc4 {[%clk 0:01:10.1]} 29.
c3 {[%clk 0:01:49.6]} 29... Rxc3 {[%clk 0:01:09.9]} 30. Rxa6 {[%clk 0:01:50.9]}
30... bxa6 {[%clk 0:01:09.4]} 31. b7 {[%clk 0:01:52.3]} 1-0

[Event "*** Qualifier 1: Titled Tuesday 3|2 Blitz"]
[Site "Chess.com"]
[Date "2017.04.04"]
[Round "2"]
[White "TheLancer"]
[Black "SergeiAza"]
[Result "0-1"]
[WhiteElo "2463"]
[BlackElo "2641"]
[TimeControl "180+2"]
[EndTime "13:22:05 PDT"]
[Termination "SergeiAza won by resignation"]

1. e4 {[%clk 0:03:02]} 1... c5 {[%clk 0:03:01]} 2. Nf3 {[%clk 0:02:58]} 2... Nc6
{[%clk 0:03:02.1]} 3. d4 {[%clk 0:02:57.6]} 3... cxd4 {[%clk 0:03:02.8]} 4. Nxd4
{[%clk 0:02:59.5]} 4... Qb6 {[%clk 0:03:03.9]} 5. Nb3 {[%clk 0:02:56.8]} 5...
Nf6 {[%clk 0:03:04.9]} 6. Bd3 {[%clk 0:02:53.3]} 6... e6 {[%clk 0:03:03.8]} 7.
O-O {[%clk 0:02:44.2]} 7... d6 {[%clk 0:03:01.8]} 8. N1d2 {[%clk 0:02:13]} 8...
Qc7 {[%clk 0:02:57.8]} 9. a4 {[%clk 0:01:55.1]} 9... Be7 {[%clk 0:02:57.1]} 10.
Qe2 {[%clk 0:01:51.6]} 10... O-O {[%clk 0:02:54.3]} 11. Nf3 {[%clk 0:01:44.2]}
11... b6 {[%clk 0:02:48.9]} 12. Bf4 {[%clk 0:01:32.5]} 12... Bb7 {[%clk
0:02:45.6]} 13. Rfd1 {[%clk 0:01:15.1]} 13... Nd7 {[%clk 0:02:43.1]} 14. Bg3
{[%clk 0:01:00.3]} 14... Rac8 {[%clk 0:02:35.7]} 15. Kh1 {[%clk 0:00:57.7]}
15... Nb4 {[%clk 0:02:32.9]} 16. c3 {[%clk 0:00:45.4]} 16... Nxd3 {[%clk
0:02:32.6]} 17. Qxd3 {[%clk 0:00:47.3]} 17... e5 {[%clk 0:02:29.3]} 18. Bh4
{[%clk 0:00:37.5]} 18... f6 {[%clk 0:02:21.6]} 19. a5 {[%clk 0:00:37.1]} 19...
Rfd8 {[%clk 0:02:15.8]} 20. a6 {[%clk 0:00:31.9]} 20... Ba8 {[%clk 0:02:15.9]}
21. Nbd2 {[%clk 0:00:31.6]} 21... Nc5 {[%clk 0:02:12.4]} 22. Qc4+ {[%clk
0:00:32.6]} 22... d5 {[%clk 0:02:13]} 23. exd5 {[%clk 0:00:33.4]} 23... Bxd5
{[%clk 0:02:12.9]} 24. Qg4 {[%clk 0:00:32.5]} 24... Qd7 {[%clk 0:02:03.8]} 25.
Qxd7 {[%clk 0:00:28.4]} 25... Rxd7 {[%clk 0:02:04.2]} 26. b4 {[%clk 0:00:28.1]}
26... Nd3 {[%clk 0:01:58.3]} 27. c4 {[%clk 0:00:17.4]} 27... Ba8 {[%clk
0:01:53.9]} 28. b5 {[%clk 0:00:15.7]} 28... Rcd8 {[%clk 0:01:53.8]} 29. Kg1
{[%clk 0:00:14.8]} 29... e4 {[%clk 0:01:44]} 0-1

[Event "*** Qualifier 1: Titled Tuesday 3|2 Blitz"]
[Site "Chess.com"]
[Date "2017.04.04"]
[Round "2"]
[White "Alex_Molchanov"]
[Black "plouarzel"]
[Result "0-1"]
[WhiteElo "2350"]
[BlackElo "2386"]
[TimeControl "180+2"]
[EndTime "13:22:05 PDT"]
[Termination "plouarzel won by resignation"]

1. d4 {[%clk 0:03:02]} 1... g6 {[%clk 0:02:51.6]} 2. c4 {[%clk 0:03:02.9]} 2...
Bg7 {[%clk 0:02:52]} 3. Nc3 {[%clk 0:03:04]} 3... e6 {[%clk 0:02:53.5]} 4. e4
{[%clk 0:03:04.8]} 4... Ne7 {[%clk 0:02:49.3]} 5. f4 {[%clk 0:03:04]} 5... d5
{[%clk 0:02:50.9]} 6. cxd5 {[%clk 0:03:03.1]} 6... exd5 {[%clk 0:02:52.8]} 7. e5
{[%clk 0:03:04.2]} 7... O-O {[%clk 0:02:50.9]} 8. Nf3 {[%clk 0:03:02.1]} 8... f6
{[%clk 0:02:49.1]} 9. Be2 {[%clk 0:02:49]} 9... fxe5 {[%clk 0:02:42.4]} 10. dxe5
{[%clk 0:02:49.9]} 10... c5 {[%clk 0:02:40.7]} 11. Nxd5 {[%clk 0:02:24.4]} 11...
Qxd5 {[%clk 0:02:09.5]} 12. Qxd5+ {[%clk 0:02:24.4]} 12... Nxd5 {[%clk
0:02:11.4]} 13. Bc4 {[%clk 0:02:25.7]} 13... Rd8 {[%clk 0:02:09.7]} 14. Be3
{[%clk 0:02:23.1]} 14... b5 {[%clk 0:02:00.5]} 15. Bxd5+ {[%clk 0:02:08.6]}
15... Rxd5 {[%clk 0:02:02.4]} 16. h4 {[%clk 0:02:07.7]} 16... Bg4 {[%clk
0:01:57.7]} 17. Nh2 {[%clk 0:02:06.1]} 17... Be6 {[%clk 0:01:52.2]} 18. g4
{[%clk 0:02:06.8]} 18... Nc6 {[%clk 0:01:51.7]} 19. Rc1 {[%clk 0:02:03.6]} 19...
Nd4 {[%clk 0:01:51.4]} 20. Kf2 {[%clk 0:02:03.6]} 20... Rad8 {[%clk 0:01:50.1]}
21. Rhg1 {[%clk 0:01:57.1]} 21... c4 {[%clk 0:01:45.7]} 22. h5 {[%clk
0:01:47.7]} 22... gxh5 {[%clk 0:01:46.6]} 23. gxh5 {[%clk 0:01:48.9]} 23... Kf7
{[%clk 0:01:32.7]} 24. Rg2 {[%clk 0:01:39.1]} 24... Bh6 {[%clk 0:01:29.6]} 25.
Rcg1 {[%clk 0:01:36.1]} 25... Nf5 {[%clk 0:01:30]} 26. Ng4 {[%clk 0:01:36.9]}
26... Bg7 {[%clk 0:01:08.7]} 27. h6 {[%clk 0:01:33.2]} 27... Nxh6 {[%clk
0:00:51.5]} 28. Nxh6+ {[%clk 0:01:29.9]} 28... Bxh6 {[%clk 0:00:52.3]} 29. Rh1
{[%clk 0:01:12.9]} 29... Rd2+ {[%clk 0:00:52.8]} 30. Bxd2 {[%clk 0:01:11.2]}
30... Rxd2+ {[%clk 0:00:54.7]} 31. Kg1 {[%clk 0:01:10.2]} 31... Rxg2+ {[%clk
0:00:55.3]} 32. Kxg2 {[%clk 0:01:09.9]} 32... Bd5+ {[%clk 0:00:56.6]} 0-1

[Event "*** Qualifier 1: Titled Tuesday 3|2 Blitz"]
[Site "Chess.com"]
[Date "2017.04.04"]
[Round "2"]
[White "superjem123"]
[Black "jcibarra"]
[Result "0-1"]
[WhiteElo "2494"]
[BlackElo "2664"]
[TimeControl "180+2"]
[EndTime "13:22:22 PDT"]
[Termination "jcibarra won by resignation"]

1. c4 {[%clk 0:03:02]} 1... e5 {[%clk 0:02:59.8]} 2. g3 {[%clk 0:03:02.5]} 2...
Nc6 {[%clk 0:03:00.8]} 3. Bg2 {[%clk 0:03:03.6]} 3... Bc5 {[%clk 0:03:01.6]} 4.
Nc3 {[%clk 0:03:05.5]} 4... d6 {[%clk 0:03:02.3]} 5. e3 {[%clk 0:03:05.9]} 5...
a6 {[%clk 0:03:03.7]} 6. Nf3 {[%clk 0:03:06.7]} 6... Ba7 {[%clk 0:02:58.8]} 7.
O-O {[%clk 0:03:06.5]} 7... Nge7 {[%clk 0:02:54]} 8. d4 {[%clk 0:03:07.2]} 8...
exd4 {[%clk 0:02:54.7]} 9. exd4 {[%clk 0:03:09.1]} 9... Bg4 {[%clk 0:02:53.1]}
10. d5 {[%clk 0:02:53.3]} 10... Ne5 {[%clk 0:02:45.6]} 11. h3 {[%clk 0:02:32.7]}
11... Nxf3+ {[%clk 0:02:43.7]} 12. Bxf3 {[%clk 0:02:34.6]} 12... Bxh3 {[%clk
0:02:45.4]} 13. Re1 {[%clk 0:02:35.6]} 13... O-O {[%clk 0:02:08.9]} 14. Bg5
{[%clk 0:01:20.5]} 14... f6 {[%clk 0:02:08.2]} 15. Be3 {[%clk 0:01:21.6]} 15...
Bxe3 {[%clk 0:02:06]} 16. Rxe3 {[%clk 0:01:23.5]} 16... Ng6 {[%clk 0:02:00.1]}
17. Be4 {[%clk 0:01:19]} 17... f5 {[%clk 0:01:57.3]} 18. Bc2 {[%clk 0:01:06.5]}
18... Bg4 {[%clk 0:01:48]} 19. Qd4 {[%clk 0:01:02.4]} 19... f4 {[%clk
0:01:40.4]} 20. gxf4 {[%clk 0:00:23.9]} 20... Rxf4 {[%clk 0:01:37.9]} 21. Qd2
{[%clk 0:00:19]} 21... Bf3 {[%clk 0:01:32.8]} 22. Rxf3 {[%clk 0:00:08.4]} 22...
Rxf3 {[%clk 0:01:33.7]} 23. Bxg6 {[%clk 0:00:06.7]} 23... hxg6 {[%clk
0:01:33.7]} 24. Kg2 {[%clk 0:00:08.6]} 24... Qf6 {[%clk 0:01:29.8]} 25. Ne4
{[%clk 0:00:09]} 25... Qf4 {[%clk 0:01:29.2]} 26. Qe2 {[%clk 0:00:05.5]} 26...
Qg4+ {[%clk 0:01:23.7]} 27. Ng3 {[%clk 0:00:06.4]} 27... Rxg3+ {[%clk
0:01:24.5]} 0-1

[Event "*** Qualifier 1: Titled Tuesday 3|2 Blitz"]
[Site "Chess.com"]
[Date "2017.04.04"]
[Round "2"]
[White "BogdanDeac"]
[Black "geeeeri"]
[Result "1-0"]
[WhiteElo "2366"]
[BlackElo "2301"]
[TimeControl "180+2"]
[EndTime "13:22:35 PDT"]
[Termination "BogdanDeac won by resignation"]

1. e4 {[%clk 0:02:59.9]} 1... e6 {[%clk 0:03:00.7]} 2. d3 {[%clk 0:02:57.3]}
2... d5 {[%clk 0:03:01.8]} 3. Qe2 {[%clk 0:02:58]} 3... Nf6 {[%clk 0:03:03.4]}
4. g3 {[%clk 0:02:51.9]} 4... c5 {[%clk 0:03:04.1]} 5. Bg2 {[%clk 0:02:51.7]}
5... Nc6 {[%clk 0:03:05.7]} 6. exd5 {[%clk 0:02:52.2]} 6... Nxd5 {[%clk
0:03:06.4]} 7. Nf3 {[%clk 0:02:52.6]} 7... Be7 {[%clk 0:03:04.8]} 8. O-O {[%clk
0:02:53.4]} 8... O-O {[%clk 0:03:05.9]} 9. Rd1 {[%clk 0:02:53.8]} 9... Qc7
{[%clk 0:02:57.9]} 10. d4 {[%clk 0:02:52.1]} 10... b6 {[%clk 0:02:55.5]} 11. c4
{[%clk 0:02:49.7]} 11... Nf6 {[%clk 0:02:48.1]} 12. Bf4 {[%clk 0:02:39.4]} 12...
Bd6 {[%clk 0:02:38.4]} 13. Bg5 {[%clk 0:02:35.3]} 13... Bb7 {[%clk 0:02:22.3]}
14. Bxf6 {[%clk 0:02:34.8]} 14... gxf6 {[%clk 0:02:24.2]} 15. Nc3 {[%clk
0:02:34.7]} 15... a6 {[%clk 0:01:49]} 16. d5 {[%clk 0:02:33.2]} 16... Ne5 {[%clk
0:01:44.4]} 17. Ne4 {[%clk 0:02:33.4]} 17... Nxf3+ {[%clk 0:00:28.5]} 18. Qxf3
{[%clk 0:02:22.1]} 18... f5 {[%clk 0:00:29.6]} 19. Nxd6 {[%clk 0:02:13.5]} 19...
Qxd6 {[%clk 0:00:31.5]} 20. dxe6 {[%clk 0:02:14.4]} 20... Bxf3 {[%clk
0:00:31.5]} 21. Rxd6 {[%clk 0:02:13.4]} 21... Bxg2 {[%clk 0:00:25]} 22. Kxg2
{[%clk 0:02:13.6]} 22... fxe6 {[%clk 0:00:19.1]} 23. Rxe6 {[%clk 0:02:13]} 23...
Rab8 {[%clk 0:00:18.5]} 24. Rd1 {[%clk 0:02:11]} 24... Rf7 {[%clk 0:00:19.9]}
25. Rdd6 {[%clk 0:02:09.5]} 25... b5 {[%clk 0:00:21.4]} 26. cxb5 {[%clk
0:01:56.7]} 26... axb5 {[%clk 0:00:23.3]} 27. b3 {[%clk 0:01:57.2]} 27... f4
{[%clk 0:00:24.3]} 28. gxf4 {[%clk 0:01:52.4]} 28... Rxf4 {[%clk 0:00:26.2]} 29.
Re7 {[%clk 0:01:53.1]} 29... c4 {[%clk 0:00:20.7]} 30. Rdd7 {[%clk 0:01:50.4]}
30... cxb3 {[%clk 0:00:07.4]} 31. Rg7+ {[%clk 0:01:49.6]} 31... Kf8 {[%clk
0:00:08.9]} 32. axb3 {[%clk 0:01:41.4]} 32... Rg4+ {[%clk 0:00:10.1]} 33. Rxg4
{[%clk 0:01:40.9]} 1-0

[Event "*** Qualifier 1: Titled Tuesday 3|2 Blitz"]
[Site "Chess.com"]
[Date "2017.04.04"]
[Round "2"]
[White "BjarkeSahl"]
[Black "MorpheusPro"]
[Result "1-0"]
[WhiteElo "2168"]
[BlackElo "2077"]
[TimeControl "180+2"]
[EndTime "13:22:58 PDT"]
[Termination "BjarkeSahl won by resignation"]

1. d4 {[%clk 0:03:01.9]} 1... d5 {[%clk 0:02:59.4]} 2. Nf3 {[%clk 0:03:03]} 2...
Bf5 {[%clk 0:02:59.4]} 3. Bf4 {[%clk 0:02:56.8]} 3... e6 {[%clk 0:02:58.8]} 4.
e3 {[%clk 0:02:58]} 4... Nf6 {[%clk 0:02:58.3]} 5. Bd3 {[%clk 0:02:58.8]} 5...
Bg6 {[%clk 0:02:58.2]} 6. Ne5 {[%clk 0:02:58.8]} 6... Bxd3 {[%clk 0:02:57.8]} 7.
cxd3 {[%clk 0:02:57.1]} 7... Nbd7 {[%clk 0:02:58.5]} 8. O-O {[%clk 0:02:57.3]}
8... c6 {[%clk 0:02:56.3]} 9. Nd2 {[%clk 0:02:56.7]} 9... Be7 {[%clk 0:02:56.6]}
10. h3 {[%clk 0:02:57.5]} 10... O-O {[%clk 0:02:56.4]} 11. Bh2 {[%clk
0:02:57.6]} 11... c5 {[%clk 0:02:55]} 12. dxc5 {[%clk 0:02:54.8]} 12... Nxc5
{[%clk 0:02:54.5]} 13. d4 {[%clk 0:02:56]} 13... Nce4 {[%clk 0:02:51.1]} 14. f3
{[%clk 0:02:52.7]} 14... Nxd2 {[%clk 0:02:47.8]} 15. Qxd2 {[%clk 0:02:53.4]}
15... Bd6 {[%clk 0:02:49]} 16. Ng4 {[%clk 0:02:51.5]} 16... Nxg4 {[%clk
0:02:40.5]} 17. hxg4 {[%clk 0:02:51.5]} 17... Bxh2+ {[%clk 0:02:39.8]} 18. Kxh2
{[%clk 0:02:52.6]} 18... Rc8 {[%clk 0:02:40.1]} 19. Kg3 {[%clk 0:02:50.8]} 19...
Rc6 {[%clk 0:02:32.2]} 20. Rfc1 {[%clk 0:02:50.9]} 20... Qc7+ {[%clk 0:02:30.5]}
21. f4 {[%clk 0:02:42.6]} 21... Rc8 {[%clk 0:02:29.3]} 22. Rxc6 {[%clk 0:02:43]}
22... Qxc6 {[%clk 0:02:27.9]} 23. Re1 {[%clk 0:02:37.1]} 23... h6 {[%clk
0:02:19.5]} 24. Re2 {[%clk 0:02:37.9]} 24... Qc4 {[%clk 0:02:15.9]} 25. a3
{[%clk 0:02:22.5]} 25... Qb3 {[%clk 0:02:11.8]} 26. Kf3 {[%clk 0:02:22.2]} 26...
Rc4 {[%clk 0:02:04.8]} 27. g3 {[%clk 0:02:17.9]} 27... Qb5 {[%clk 0:01:55.2]}
28. Rh2 {[%clk 0:02:15.7]} 28... Rc6 {[%clk 0:01:39.8]} 29. g5 {[%clk
0:02:13.3]} 29... hxg5 {[%clk 0:01:24.9]} 30. fxg5 {[%clk 0:02:12.9]} 30... Qf1+
{[%clk 0:01:22.8]} 31. Qf2 {[%clk 0:02:13.6]} 31... Qb1 {[%clk 0:01:10.2]} 32.
Kg4 {[%clk 0:01:56.5]} 32... Rc1 {[%clk 0:00:56.1]} 33. Qf4 {[%clk 0:01:48.1]}
33... Rc8 {[%clk 0:00:40.6]} 34. Rf2 {[%clk 0:01:45.1]} 34... Qd1+ {[%clk
0:00:27]} 35. Qf3 {[%clk 0:01:45.9]} 35... Qb1 {[%clk 0:00:20.8]} 36. Qxf7+
{[%clk 0:01:43.4]} 1-0

[Event "*** Qualifier 1: Titled Tuesday 3|2 Blitz"]
[Site "Chess.com"]
[Date "2017.04.04"]
[Round "2"]
[White "Bugcrusher"]
[Black "agser"]
[Result "1-0"]
[WhiteElo "2468"]
[BlackElo "2614"]
[TimeControl "180+2"]
[EndTime "13:23:18 PDT"]
[Termination "Bugcrusher won by resignation"]

1. d4 {[%clk 0:03:02]} 1... Nf6 {[%clk 0:03:00.3]} 2. c4 {[%clk 0:03:02.5]} 2...
e6 {[%clk 0:03:01.3]} 3. Nc3 {[%clk 0:02:59]} 3... Bb4 {[%clk 0:03:00.9]} 4. a3
{[%clk 0:03:00.2]} 4... Bxc3+ {[%clk 0:03:01.1]} 5. bxc3 {[%clk 0:03:01]} 5...
d6 {[%clk 0:03:02.4]} 6. e3 {[%clk 0:02:57.6]} 6... c5 {[%clk 0:02:57.3]} 7. Bd3
{[%clk 0:02:58.1]} 7... O-O {[%clk 0:02:51.8]} 8. Ne2 {[%clk 0:02:58.3]} 8...
Ne8 {[%clk 0:02:50.3]} 9. e4 {[%clk 0:02:56.9]} 9... Nc6 {[%clk 0:02:36.2]} 10.
O-O {[%clk 0:02:52.9]} 10... f5 {[%clk 0:02:33.5]} 11. exf5 {[%clk 0:02:48.1]}
11... exf5 {[%clk 0:02:35.4]} 12. Nf4 {[%clk 0:02:18.3]} 12... cxd4 {[%clk
0:02:26.7]} 13. cxd4 {[%clk 0:02:19.4]} 13... Nxd4 {[%clk 0:02:26]} 14. Bb2
{[%clk 0:02:19.9]} 14... Ne6 {[%clk 0:02:27]} 15. Nd5 {[%clk 0:02:11.1]} 15...
N8c7 {[%clk 0:02:22]} 16. Bc2 {[%clk 0:01:59.1]} 16... Kh8 {[%clk 0:02:02.2]}
17. Re1 {[%clk 0:01:55.1]} 17... Bd7 {[%clk 0:01:25.7]} 18. Qd2 {[%clk
0:01:35.8]} 18... Rc8 {[%clk 0:01:17.5]} 19. Rad1 {[%clk 0:01:34.7]} 19... Rf7
{[%clk 0:01:03.4]} 20. Nxc7 {[%clk 0:01:07.8]} 20... Qxc7 {[%clk 0:01:02.4]} 21.
Qxd6 {[%clk 0:01:08.3]} 21... Qxc4 {[%clk 0:00:54]} 22. Bxf5 {[%clk 0:01:00.2]}
22... Rc6 {[%clk 0:00:23.8]} 23. Bxe6 {[%clk 0:00:56.8]} 23... Rxd6 {[%clk
0:00:08.9]} 24. Bxc4 {[%clk 0:00:56.5]} 24... Re7 {[%clk 0:00:09.8]} 25. h4
{[%clk 0:00:46.7]} 25... Rxd1 {[%clk 0:00:07.3]} 26. Rxd1 {[%clk 0:00:47.3]}
26... h6 {[%clk 0:00:08.6]} 27. h5 {[%clk 0:00:45.1]} 27... Kh7 {[%clk
0:00:04.4]} 28. Bd3+ {[%clk 0:00:44.2]} 28... Kg8 {[%clk 0:00:05.4]} 29. Bg6
{[%clk 0:00:44.9]} 29... Kf8 {[%clk 0:00:03.3]} 30. Bc3 {[%clk 0:00:45]} 30...
a5 {[%clk 0:00:03]} 31. Bxa5 {[%clk 0:00:45.8]} 1-0

[Event "*** Qualifier 1: Titled Tuesday 3|2 Blitz"]
[Site "Chess.com"]
[Date "2017.04.04"]
[Round "2"]
[White "IMRosen"]
[Black "gmcorrales"]
[Result "0-1"]
[WhiteElo "2228"]
[BlackElo "2571"]
[TimeControl "180+2"]
[EndTime "13:23:20 PDT"]
[Termination "gmcorrales won by resignation"]

1. d4 {[%clk 0:03:02]} 1... Nf6 {[%clk 0:03:00.5]} 2. Bf4 {[%clk 0:03:02]} 2...
g6 {[%clk 0:03:02.4]} 3. Nc3 {[%clk 0:03:02.1]} 3... Bg7 {[%clk 0:03:03.5]} 4.
e4 {[%clk 0:03:03]} 4... d6 {[%clk 0:03:04.1]} 5. Nf3 {[%clk 0:03:04.6]} 5... a6
{[%clk 0:03:04.2]} 6. a4 {[%clk 0:03:04.7]} 6... Bg4 {[%clk 0:03:03.2]} 7. Bc4
{[%clk 0:03:05.6]} 7... O-O {[%clk 0:03:02.6]} 8. h3 {[%clk 0:03:05.4]} 8...
Bxf3 {[%clk 0:03:02.7]} 9. Qxf3 {[%clk 0:03:07.3]} 9... Nc6 {[%clk 0:03:04]} 10.
Rd1 {[%clk 0:02:57.3]} 10... Nd7 {[%clk 0:02:56.9]} 11. Qe3 {[%clk 0:02:16.6]}
11... e5 {[%clk 0:02:50.1]} 12. dxe5 {[%clk 0:02:16.2]} 12... Ndxe5 {[%clk
0:02:45.3]} 13. Ba2 {[%clk 0:02:13.2]} 13... Nb4 {[%clk 0:02:43.5]} 14. Bb1
{[%clk 0:02:04.4]} 14... Nc4 {[%clk 0:02:38.8]} 15. Qc1 {[%clk 0:02:02.5]} 15...
Qf6 {[%clk 0:02:12.5]} 16. O-O {[%clk 0:02:01.5]} 16... Nxb2 {[%clk 0:02:12.9]}
17. Qxb2 {[%clk 0:01:55.3]} 17... Qxc3 {[%clk 0:02:13.5]} 18. Qxc3 {[%clk
0:01:47.2]} 18... Bxc3 {[%clk 0:02:15.4]} 19. Bd2 {[%clk 0:01:19.6]} 19... Bxd2
{[%clk 0:02:16.2]} 20. Rxd2 {[%clk 0:01:21.5]} 20... b5 {[%clk 0:02:16.8]} 21.
c3 {[%clk 0:01:19.8]} 21... Nc6 {[%clk 0:02:17.6]} 22. Bd3 {[%clk 0:01:19.2]}
22... bxa4 {[%clk 0:02:11.9]} 23. Ra1 {[%clk 0:01:20]} 23... Ne5 {[%clk
0:02:08.8]} 24. Be2 {[%clk 0:01:19]} 24... Nd7 {[%clk 0:02:08.7]} 25. Rxa4
{[%clk 0:01:19.2]} 25... Nc5 {[%clk 0:02:09.7]} 26. Rad4 {[%clk 0:01:17.9]}
26... a5 {[%clk 0:02:10.7]} 27. Ra2 {[%clk 0:01:13.9]} 27... Rfb8 {[%clk
0:02:09.9]} 28. e5 {[%clk 0:01:12.6]} 28... dxe5 {[%clk 0:01:37.2]} 29. Rd5
{[%clk 0:01:13.3]} 29... Ne4 {[%clk 0:01:38]} 30. Raxa5 {[%clk 0:01:05.9]} 30...
Rxa5 {[%clk 0:01:37.8]} 31. Rxa5 {[%clk 0:01:06.4]} 31... Nxc3 {[%clk
0:01:38.7]} 32. Rxe5 {[%clk 0:01:07.1]} 32... Rb1+ {[%clk 0:01:38.3]} 33. Kh2
{[%clk 0:01:07.6]} 33... Re1 {[%clk 0:01:37.3]} 34. Re8+ {[%clk 0:01:07]} 34...
Kg7 {[%clk 0:01:37.9]} 35. Bb5 {[%clk 0:01:08.6]} 35... Rxe8 {[%clk 0:01:37.3]}
36. Bxe8 {[%clk 0:01:10.5]} 36... Ne4 {[%clk 0:01:27.8]} 37. f3 {[%clk
0:01:08.1]} 37... Nd6 {[%clk 0:01:28.5]} 38. Bc6 {[%clk 0:01:09.7]} 38... Kf6
{[%clk 0:01:29.8]} 39. f4 {[%clk 0:01:09.7]} 39... Nf5 {[%clk 0:01:29]} 40. g4
{[%clk 0:01:08.3]} 40... Nd4 {[%clk 0:01:30.1]} 41. Ba4 {[%clk 0:01:09.7]} 41...
Ne2 {[%clk 0:01:30.9]} 42. f5 {[%clk 0:01:02.9]} 42... gxf5 {[%clk 0:01:30.6]}
43. gxf5 {[%clk 0:00:59.1]} 43... Nd4 {[%clk 0:01:30.5]} 44. Kg3 {[%clk
0:00:59]} 44... Kxf5 {[%clk 0:01:31.7]} 45. Bd1 {[%clk 0:00:55]} 45... h6 {[%clk
0:01:30.9]} 46. Bg4+ {[%clk 0:00:55.6]} 46... Ke5 {[%clk 0:01:31.5]} 47. Kf2
{[%clk 0:00:56.2]} 47... f5 {[%clk 0:01:32.2]} 48. Bh5 {[%clk 0:00:57.1]} 48...
f4 {[%clk 0:01:33.3]} 49. Be8 {[%clk 0:00:56.8]} 49... c5 {[%clk 0:01:34.3]} 50.
Bf7 {[%clk 0:00:58.4]} 50... Nf5 {[%clk 0:01:33.3]} 51. Bc4 {[%clk 0:00:59]}
51... Nd6 {[%clk 0:01:34.1]} 52. Be2 {[%clk 0:00:59.1]} 52... c4 {[%clk
0:01:35.1]} 53. Kf3 {[%clk 0:01:00.7]} 53... c3 {[%clk 0:01:36.2]} 54. Bd3
{[%clk 0:01:01.9]} 54... Nf5 {[%clk 0:01:36.5]} 55. Ke2 {[%clk 0:00:57.9]} 55...
Nd4+ {[%clk 0:01:37]} 56. Kd1 {[%clk 0:00:59.5]} 56... f3 {[%clk 0:01:37.7]} 57.
h4 {[%clk 0:01:00.8]} 57... Kf4 {[%clk 0:01:38.5]} 58. h5 {[%clk 0:01:01.6]}
58... Ke3 {[%clk 0:01:39.8]} 59. Bc4 {[%clk 0:01:02.6]} 59... Ne2 {[%clk
0:01:39.8]} 60. Ke1 {[%clk 0:01:02.9]} 60... Nf4 {[%clk 0:01:40.7]} 61. Kd1
{[%clk 0:01:03.3]} 61... Nxh5 {[%clk 0:01:41.2]} 0-1

[Event "*** Qualifier 1: Titled Tuesday 3|2 Blitz"]
[Site "Chess.com"]
[Date "2017.04.04"]
[Round "2"]
[White "pastouche06"]
[Black "macko06"]
[Result "0-1"]
[WhiteElo "2299"]
[BlackElo "2330"]
[TimeControl "180+2"]
[EndTime "13:23:22 PDT"]
[Termination "macko06 won by checkmate"]

1. c4 {[%clk 0:02:58.1]} 1... e5 {[%clk 0:02:59.5]} 2. Nc3 {[%clk 0:02:58.6]}
2... Nf6 {[%clk 0:03:00.7]} 3. Nf3 {[%clk 0:02:59]} 3... Nc6 {[%clk 0:03:02.1]}
4. e4 {[%clk 0:02:59.8]} 4... Bb4 {[%clk 0:03:02.2]} 5. d3 {[%clk 0:02:59.9]}
5... O-O {[%clk 0:03:01.4]} 6. g3 {[%clk 0:02:59.6]} 6... d6 {[%clk 0:03:01.9]}
7. Bg2 {[%clk 0:03:00.7]} 7... Bxc3+ {[%clk 0:03:01.7]} 8. bxc3 {[%clk
0:03:01.4]} 8... a6 {[%clk 0:03:03.2]} 9. O-O {[%clk 0:03:02.3]} 9... b5 {[%clk
0:03:03.9]} 10. cxb5 {[%clk 0:02:48.6]} 10... axb5 {[%clk 0:03:05.8]} 11. Re1
{[%clk 0:02:33.5]} 11... h6 {[%clk 0:02:56.4]} 12. d4 {[%clk 0:02:32]} 12... Re8
{[%clk 0:02:48.1]} 13. Qb3 {[%clk 0:01:53.1]} 13... Rb8 {[%clk 0:02:37]} 14. d5
{[%clk 0:01:14.5]} 14... Ne7 {[%clk 0:02:29.9]} 15. a4 {[%clk 0:01:13.9]} 15...
Bd7 {[%clk 0:02:29.7]} 16. a5 {[%clk 0:01:13.8]} 16... c5 {[%clk 0:02:24.3]} 17.
dxc6 {[%clk 0:01:09.2]} 17... Bxc6 {[%clk 0:02:25.1]} 18. Qb4 {[%clk 0:01:04.1]}
18... Qc7 {[%clk 0:02:14.6]} 19. Ba3 {[%clk 0:01:00.2]} 19... Red8 {[%clk
0:02:03.7]} 20. Nxe5 {[%clk 0:00:46.6]} 20... dxe5 {[%clk 0:01:21.8]} 21. Qxe7
{[%clk 0:00:48.5]} 21... Rd7 {[%clk 0:01:10.7]} 22. Qc5 {[%clk 0:00:41.4]} 22...
Qb7 {[%clk 0:01:10.7]} 23. Bb4 {[%clk 0:00:37.5]} 23... Nxe4 {[%clk 0:01:08.3]}
24. Bxe4 {[%clk 0:00:36.9]} 24... Bxe4 {[%clk 0:01:08.5]} 25. a6 {[%clk
0:00:38.1]} 25... Qa8 {[%clk 0:01:06.5]} 26. Qxe5 {[%clk 0:00:36.6]} 26... Bh1
{[%clk 0:01:00.4]} 27. f3 {[%clk 0:00:34.5]} 27... Bxf3 {[%clk 0:00:53.4]} 28.
a7 {[%clk 0:00:33.8]} 28... Rbd8 {[%clk 0:00:51.3]} 29. Qe3 {[%clk 0:00:19.7]}
29... Bh1 {[%clk 0:00:34]} 30. Re2 {[%clk 0:00:17.8]} 30... Rd1+ {[%clk
0:00:33.6]} 31. Rxd1 {[%clk 0:00:17.4]} 31... Rxd1+ {[%clk 0:00:34.3]} 32. Re1
{[%clk 0:00:18.8]} 32... Qg2# {[%clk 0:00:34.5]} 0-1